bitfinex-derivatives/quotes_SOLF0:USTF0_20250606
["timestamp","ask_amount","ask_price","bid_price","bid_amount"]
[1749183521179,34.92,146.89,146.87,6.8052]
[1749183521386,34.97167318,146.89,146.87,6.84805999]
[1749183521685,34.97167318,146.89,146.87,0.04285999]
[1749183523285,34.97167318,146.89,146.87,6.84815999]
[1749183523588,34.97167318,146.89,146.87,0.04285999]
[1749183524186,4.83716295,146.88,146.81,4.83716295]
[1749183524385,4.83716295,146.88,146.83,6.8072]
[1749183524581,4.83716295,146.86,146.83,6.8072]
[1749183524983,4.83716295,146.86,146.82,6.8076]
[1749183525185,34.96913151,146.85,146.83,0.04330089]
[1749183525385,4.83716295,146.84,146.83,0.04330089]
[1749183525584,4.83716295,146.84,146.81,6.8079]
[1749183526181,4.83716295,146.84,146.8,6.8085]
[1749183526586,0.04376146,146.83,146.81,0.0435257]
[1749183527385,4.83716295,146.82,146.81,0.0435257]
[1749183528489,0.04376146,146.83,146.81,0.0435257]
[1749183528693,4.88092441,146.83,146.81,6.8513257]
[1749183528994,4.88092441,146.83,146.81,0.0435257]
[1749183529993,4.88092441,146.83,146.81,6.8517257]
[1749183530193,4.88092441,146.83,146.81,0.0435257]
[1749183530795,4.88092441,146.83,146.81,6.8516257]
[1749183531498,4.88092441,146.83,146.74,2.2853]
[1749183531695,4.83716295,146.8,146.74,2.2853]
[1749183531896,4.83716295,146.8,146.77,6.8097]
[1749183532290,4.83716295,146.8,146.74,2.2853]
[1749183532696,0.04813503,146.78,146.74,2.2853]
[1749183533592,0.04813503,146.78,146.72,37.3683]
[1749183533800,4.83716295,146.77,146.72,37.3683]
[1749183534303,35.2,146.77,146.69,36.4641]
[1749183534598,0.0509299,146.74,146.69,35.2]
[1749183535199,4.88809285,146.74,146.69,35.2]
[1749183535496,4.83716295,146.73,146.69,35.2]
[1749183535796,0.0509299,146.74,146.69,35.2]
[1749183536200,0.0509299,146.74,146.7,4.83716295]
[1749183536703,0.0509299,146.74,146.73,6.8119]
[1749183539199,4.88809285,146.74,146.69,35.2]
[1749183539498,0.0509299,146.74,146.69,40.03716295]
[1749183540098,0.0509299,146.74,146.73,6.8119]
[1749183542606,0.0509299,146.74,146.73,11.64906295]
[1749183542997,37.4892,146.8,146.78,6.8093]
[1749183543196,37.4892,146.8,146.73,4.83716295]
[1749183543403,37.4892,146.8,146.73,40.05716295]
[1749183543903,0.0442083,146.78,146.75,0.04599625]
[1749183544210,0.0442083,146.78,146.77,6.8098]
[1749183551710,0.0442083,146.78,146.75,0.04599625]
[1749183551909,4.83716295,146.77,146.75,0.04599625]
[1749183552412,0.0442083,146.78,146.75,0.04599625]
[1749183552604,0.0442083,146.78,146.75,6.85669625]
[1749183553009,0.0442083,146.78,146.75,0.04599625]
[1749183553207,0.0442083,146.78,146.76,6.8105]
[1749183553408,0.0442083,146.78,146.75,0.04599625]
[1749183553910,0.0442083,146.78,146.76,6.8105]
[1749183554110,0.0442083,146.78,146.75,0.04599625]
[1749183554310,0.0442083,146.78,146.77,6.81]
[1749183555913,0.0442083,146.78,146.76,6.8104]
[1749183556309,0.0442083,146.78,146.75,0.04599625]
[1749183556719,0.0442083,146.78,146.75,6.85659625]
[1749183556911,0.0442083,146.78,146.75,0.04599625]
[1749183557218,0.0442083,146.78,146.75,6.85679625]
[1749183557414,6.8538083,146.78,146.75,0.04599625]
[1749183557621,4.83716295,146.77,146.75,0.04599625]
[1749183558216,11.64726295,146.77,146.75,0.04599625]
[1749183562318,4.3419083,146.78,146.75,0.04599625]
[1749183562319,0.0442083,146.78,146.75,0.04599625]
[1749183562719,0.0442083,146.78,146.76,4.83716295]
[1749183562924,0.0442083,146.78,146.77,6.81]
[1749183571429,10.62018649,146.78,146.75,6.85689625]
[1749183571633,5.73947817,146.77,146.75,6.85689625]
[1749183571833,4.88137125,146.78,146.75,6.85689625]
[1749183572029,5.73965114,146.77,146.75,0.04599625]
[1749183572238,11.69097125,146.78,146.75,0.04599625]
[1749183572433,5.73977796,146.77,146.75,0.04599625]
[1749183572629,4.88137125,146.78,146.75,0.04599625]
[1749183573731,4.88137125,146.78,146.76,6.8105]
[1749183574434,4.88137125,146.78,146.77,6.81]
[1749183574636,10.62415074,146.78,146.75,0.04599625]
[1749183574836,4.88137125,146.78,146.75,0.04599625]
[1749183575133,0.0442083,146.78,146.75,0.04599625]
[1749183575332,10.5804759,146.77,146.75,0.04599625]
[1749183575532,4.83716295,146.77,146.75,0.04599625]
[1749183575739,9.37366295,146.77,146.75,0.04599625]
[1749183575936,5.74477849,146.76,146.68,170.70872448]
[1749183576133,4.83716295,146.73,146.68,170.70872448]
[1749183576935,0.04790279,146.72,146.68,170.70872448]
[1749183577633,0.04790279,146.72,146.71,6.8128]
[1749183578343,0.04790279,146.72,146.69,6.8133]
[1749183578534,0.04790279,146.72,146.66,4.83716295]
[1749183578935,0.04790279,146.72,146.7,6.8129]
[1749183579336,0.04790279,146.72,146.68,4.83716295]
[1749183579537,0.04790279,146.72,146.71,6.8128]
[1749183581642,2.79e-06,146.72,146.71,6.8128]
[1749183592353,2.79e-06,146.72,146.71,11.64996295]
[1749183592946,37.8195,146.77,146.76,6.8105]
[1749183593147,2.2795,146.77,146.76,6.8105]
[1749183593745,44.3388,146.8,146.77,6.81]
[1749183593953,5.73170444,146.79,146.77,6.85777919]
[1749183594154,44.38522455,146.8,146.77,6.85777919]
[1749183594355,5.73253918,146.79,146.77,6.85777919]
[1749183594549,44.38522455,146.8,146.77,6.85777919]
[1749183594750,5.73257226,146.79,146.78,6.8096]
[1749183594950,37.57642455,146.8,146.77,0.04777919]
[1749183595149,35.30642455,146.8,146.77,0.04777919]
[1749183595451,0.04642455,146.8,146.79,6.8091]
[1749183599455,2.3077,146.85,146.78,4.83716295]
[1749183599649,35.26,146.86,146.82,4.83716295]
[1749183600052,4.3092,146.87,146.82,4.83716295]
[1749183600355,0.05238192,146.86,146.82,4.83716295]
[1749183600555,0.05238192,146.86,146.83,0.04997865]
[1749183600749,0.05238192,146.86,146.84,4.83716295]
[1749183600949,6.26991844,146.93,146.84,4.83716295]
[1749183601155,5.72342692,146.92,146.9,6.804]
[1749183601356,44.3808,146.94,146.9,4.83716295]
[1749183601357,5.71597965,146.93,146.9,4.83716295]
[1749183601656,37.5785,146.94,146.86,4.83716295]
[1749183601855,37.5785,146.94,146.9,4.83716295]
[1749183602152,0.05224126,146.93,146.91,0.04393591]
[1749183604361,4.88940421,146.93,146.85,40.09716295]
[1749183604548,4.83716295,146.93,146.85,40.09716295]
[1749183604752,6.8042,146.9,146.86,6.8055]
[1749183605057,4.83716295,146.93,146.85,40.09716295]
[1749183605246,0.05117345,146.9,146.88,0.04814997]
[1749183606757,6.85517345,146.9,146.88,0.04814997]
[1749183607254,0.05117345,146.9,146.88,0.04814997]
[1749183607847,0.05117345,146.9,146.88,6.85304997]
[1749183608254,0.05117345,146.9,146.88,0.04814997]
[1749183608451,0.05117345,146.9,146.89,6.8045]
[1749183608956,0.05117345,146.9,146.88,0.04814997]
[1749183609160,6.85527345,146.9,146.88,0.04814997]
[1749183609861,0.05117345,146.9,146.88,0.04814997]
[1749183612759,0.05117345,146.9,146.88,6.85304997]
[1749183613361,0.05117345,146.9,146.88,0.04814997]
[1749183614358,37.41997345,146.9,146.88,0.04814997]
[1749183614661,44.22407345,146.9,146.88,0.04814997]
[1749183615062,37.41997345,146.9,146.88,0.04814997]
[1749183618460,0.05117345,146.9,146.88,0.04814997]
[1749183618670,0.05117345,146.9,146.89,6.8045]
[1749183619061,7.345e-05,146.9,146.89,15.14386564]
[1749183624667,7.345e-05,146.9,146.89,6.8045]
[1749183629371,7.345e-05,146.9,146.89,11.66568586]
[1749183630174,7.345e-05,146.9,146.89,6.8045]
[1749183630367,7.345e-05,146.9,146.89,11.66568586]
[1749183630964,7.345e-05,146.9,146.89,6.8045]
[1749183631163,7.345e-05,146.9,146.88,6.85304997]
[1749183631570,7.345e-05,146.9,146.88,0.04814997]
[1749183633870,7.345e-05,146.9,146.88,6.85304997]
[1749183634473,6.80407345,146.9,146.88,0.04814997]
[1749183634870,7.345e-05,146.9,146.88,0.04814997]
[1749183635271,7.345e-05,146.9,146.88,6.85304997]
[1749183635874,7.345e-05,146.9,146.88,0.04814997]
[1749183636073,6.80417345,146.9,146.88,0.04814997]
[1749183637071,11.66535931,146.9,146.88,0.04814997]
[1749183637466,4.86125931,146.9,146.83,35.18]
[1749183637672,4.86118586,146.88,146.81,4.86118586]
[1749183637871,4.86118586,146.86,146.8,35.18]
[1749183638069,11.66708586,146.86,146.82,6.8074]
[1749183638270,13.94568586,146.86,146.82,6.8074]
[1749183638468,0.04931694,146.85,146.83,0.05146496]
[1749183638673,0.04931694,146.85,146.83,6.85866496]
[1749183640575,10.58887127,146.84,146.83,0.05146496]
[1749183645073,4.86118586,146.84,146.83,0.05146496]
[1749183647772,11.7168028,146.85,146.83,0.05146496]
[1749183648380,4.9105028,146.85,146.83,0.05146496]
[1749183648574,0.04931694,146.85,146.83,0.05146496]
[1749183650482,0.04931694,146.85,146.84,6.8068]
[1749183651882,37.2516,146.9,146.87,6.8051]
[1749183652783,37.29941294,146.9,146.87,6.85432849]
[1749183653176,35.04781294,146.9,146.87,6.85432849]
[1749183653373,41.85181294,146.9,146.87,6.85432849]
[1749183654885,41.85181294,146.9,146.87,0.04922849]
[1749183655086,11.66578586,146.89,146.87,0.04922849]
[1749183655483,6.8046,146.89,146.87,0.04922849]
[1749183656085,41.85211294,146.9,146.87,0.04922849]
[1749183657090,6.8045,146.89,146.87,0.04922849]
[1749183659892,6.8049,146.88,146.87,0.04922849]
[1749183660285,35.04781294,146.9,146.84,6.8067]
[1749183660481,35.0,146.9,146.83,4.86118586]
[1749183660688,2.1559,146.89,146.83,4.86118586]
[1749183660990,6.8052,146.88,146.84,6.8068]
[1749183661390,0.04500121,146.87,146.85,0.05222883]
[1749183661994,0.04500121,146.87,146.85,4.91341469]
[1749183662692,0.04500121,146.87,146.86,6.8058]
[1749183662884,0.04500121,146.87,146.85,0.05222883]
[1749183663082,0.04500121,146.87,146.77,37.2066]
[1749183663083,35.0,146.86,146.77,37.2066]
[1749183663283,6.8069,146.84,146.8,6.8084]
[1749183663591,10.57058324,146.85,146.78,4.86118586]
[1749183663796,6.8075,146.83,146.79,6.8089]
[1749183664289,6.85735669,146.82,146.8,0.05187933]
[1749183664688,0.04965669,146.82,146.8,0.05187933]
[1749183665090,6.8082,146.81,146.8,0.05187933]
[1749183666791,4.86118586,146.81,146.76,6.8103]
[1749183667389,6.8089,146.8,146.76,6.8103]
[1749183667890,0.05208942,146.79,146.76,6.8103]
[1749183669888,6.86158942,146.79,146.73,4.86118586]
[1749183670086,0.04344589,146.77,146.73,4.86118586]
[1749183670291,0.04344589,146.77,146.74,6.811]
[1749183670493,0.04344589,146.77,146.73,4.86118586]
[1749183670694,0.04344589,146.77,146.71,35.0]
[1749183670896,0.04344589,146.77,146.73,4.86118586]
[1749183671396,0.04344589,146.77,146.75,6.8107]
[1749183671597,0.04344589,146.77,146.73,4.86118586]
[1749183672001,0.04344589,146.77,146.74,6.8114]
[1749183672598,0.04344589,146.77,146.75,6.8107]
[1749183675002,0.04344589,146.77,146.73,4.86118586]
[1749183675898,0.04344589,146.77,146.75,4.86118586]
[1749183676298,4.589e-05,146.77,146.75,4.86118586]
[1749183676503,39.4439,146.85,146.76,4.86118586]
[1749183676703,39.4439,146.85,146.8,4.86118586]
[1749183676704,37.1567,146.85,146.8,4.86118586]
[1749183677212,37.1567,146.85,146.82,6.8074]
[1749183677502,37.20331879,146.85,146.82,6.8523616]
[1749183678703,37.20331879,146.85,146.83,6.8071]
[1749183679008,35.06661879,146.85,146.83,6.8071]
[1749183681009,35.06661879,146.85,146.82,0.0449616]
[1749183682508,35.06661879,146.85,146.82,6.8525616]
[1749183682708,35.06661879,146.85,146.82,0.0449616]
[1749183683711,35.06661879,146.85,146.83,6.8069]
[1749183685115,35.06661879,146.85,146.82,6.8522616]
[1749183685314,35.06661879,146.85,146.82,0.0449616]
[1749183685811,35.06661879,146.85,146.84,6.8068]
[1749183686017,0.04661879,146.85,146.84,6.8068]
[1749183687815,0.04661879,146.85,146.83,6.8072]
[1749183688109,0.04661879,146.85,146.82,0.0449616]
[1749183688310,0.04661879,146.85,146.82,6.8523616]
[1749183688516,0.04661879,146.85,146.82,0.0449616]
[1749183688912,0.04661879,146.85,146.82,6.8526616]
[1749183690014,0.04661879,146.85,146.82,0.0449616]
[1749183690309,35.18,146.84,146.82,0.0449616]
[1749183690514,40.04118586,146.84,146.82,0.0449616]
[1749183690917,6.8073,146.83,146.82,0.0449616]
[1749183691119,40.04118586,146.84,146.82,0.0449616]
[1749183691417,46.84828586,146.84,146.82,0.0449616]
[1749183693017,35.18,146.84,146.82,0.0449616]
[1749183694419,6.8073,146.83,146.82,0.0449616]
[1749183697223,12.54103468,146.83,146.82,0.0449616]
[1749183697518,12.54103468,146.83,146.77,4.86118586]
[1749183697519,6.8085,146.81,146.77,4.86118586]
[1749183697720,6.8085,146.81,146.75,40.04118586]
[1749183697920,2.1924,146.83,146.75,40.04118586]
[1749183698121,5.73479729,146.82,146.78,6.8093]
[1749183698422,6.8081,146.82,146.78,6.8093]
[1749183698623,0.05240089,146.81,146.78,6.8093]
[1749183700416,0.05240089,146.81,146.79,6.809]
[1749183703327,0.05240089,146.81,146.78,6.8094]
[1749183704034,0.05240089,146.81,146.79,6.809]
[1749183707024,0.05240089,146.81,146.76,11.67148586]
[1749183707331,6.86060089,146.81,146.76,4.86118586]
[1749183707532,0.05240089,146.81,146.76,4.86118586]
[1749183708123,6.809,146.8,146.76,4.86118586]
[1749183709128,4.86118586,146.79,146.69,134.90496734]
[1749183709324,0.0505742,146.75,146.71,4.86118586]
[1749183709729,0.0505742,146.75,146.69,174.7861532]
[1749183710434,6.8616742,146.75,146.7,6.813]
[1749183711134,6.8616742,146.75,146.71,6.8127]
[1749183712933,0.0505742,146.75,146.69,174.7861532]
[1749183713823,0.0505742,146.75,146.73,4.86118586]
[1749183714027,41.8292,146.79,146.73,4.86118586]
[1749183714227,35.02,146.79,146.75,4.86118586]
[1749183714735,35.02,146.79,146.76,6.8104]
[1749183715133,35.06639211,146.79,146.76,6.86133858]
[1749183715834,35.06639211,146.79,146.77,6.81]
[1749183718535,35.06639211,146.79,146.78,6.8096]
[1749183719235,35.06639211,146.79,146.77,6.8099]
[1749183720228,35.06639211,146.79,146.78,6.8096]
[1749183720638,35.06639211,146.79,146.76,0.05093858]
[1749183721138,35.06639211,146.79,146.76,6.86123858]
[1749183722442,35.06639211,146.79,146.77,6.81]
[1749183724641,35.06639211,146.79,146.78,6.8096]
[1749183725537,35.06639211,146.79,146.76,0.05093858]
[1749183726242,35.06639211,146.79,146.77,6.81]
[1749183726440,35.06639211,146.79,146.76,0.05093858]
[1749183726641,35.06639211,146.79,146.78,6.8096]
[1749183727436,35.06639211,146.79,146.77,6.8099]
[1749183727637,35.06639211,146.79,146.76,0.05093858]
[1749183728044,35.06639211,146.79,146.78,6.8096]
[1749183728343,35.06639211,146.79,146.76,0.05093858]
[1749183728744,35.06639211,146.79,146.77,6.8101]
[1749183728938,35.06639211,146.79,146.76,0.05093858]
[1749183729639,35.06639211,146.79,146.78,6.8096]
[1749183730946,6.34489126,146.84,146.82,6.8077]
[1749183730947,35.02,146.84,146.82,6.8077]
[1749183731145,35.02,146.84,146.8,4.86118586]
[1749183731744,5.76835511,146.83,146.8,4.86118586]
[1749183731936,0.05104553,146.83,146.8,4.90567342]
[1749183732539,0.05104553,146.83,146.81,6.808]
[1749183732735,0.05104553,146.83,146.8,0.04448756]
[1749183732940,5.77169353,146.82,146.8,0.04448756]
[1749183733146,0.05104553,146.83,146.8,0.04448756]
[1749183733344,5.77196484,146.82,146.8,0.04448756]
[1749183733641,4.91223139,146.83,146.8,0.04448756]
[1749183733850,5.76768826,146.82,146.8,0.04448756]
[1749183734049,12.57588826,146.81,146.8,0.04448756]
[1749183734246,5.76768826,146.81,146.75,4.86118586]
[1749183734443,40.78768826,146.8,146.75,4.86118586]
[1749183734646,35.02,146.8,146.76,6.8105]
[1749183734944,5.70364418,146.79,146.76,6.8105]
[1749183735143,35.02,146.8,146.76,6.8105]
[1749183735340,5.75576978,146.79,146.77,0.04370885]
[1749183735542,0.0519612,146.79,146.77,6.85370885]
[1749183736238,0.0519612,146.79,146.77,0.04370885]
[1749183736436,6.8611612,146.79,146.77,0.04370885]
[1749183736642,5.71018542,146.78,146.77,0.04370885]
[1749183737039,0.0519612,146.79,146.77,0.04370885]
[1749183737247,5.70866789,146.78,146.77,0.04370885]
[1749183737646,12.51826789,146.78,146.77,0.04370885]
[1749183738737,6.8104,146.77,146.73,6.8117]
[1749183739036,35.02,146.76,146.7,4.86118586]
[1749183739239,35.02,146.76,146.67,427.28]
[1749183739240,5.69046529,146.75,146.69,139.7661532]
[1749183739541,6.8114,146.74,146.69,4.86118586]
[1749183739737,4.86118586,146.75,146.69,4.86118586]
[1749183739943,0.04402545,146.73,146.68,4.86118586]
[1749183740140,0.04402545,146.73,146.67,35.02]
[1749183740343,4.90521131,146.73,146.66,4.86118586]
[1749183740544,35.0,146.72,146.69,6.8137]
[1749183742645,41.8125,146.72,146.68,6.8142]
[1749183742846,35.0,146.72,146.68,6.8142]
[1749183743243,35.0,146.72,146.69,6.8137]
[1749183743444,35.0,146.72,146.67,4.86118586]
[1749183743849,41.8124,146.72,146.68,6.8141]
[1749183744251,35.0,146.72,146.68,6.8141]
[1749183745053,35.0,146.72,146.69,6.8137]
[1749183745656,41.8124,146.72,146.68,6.8141]
[1749183745953,35.0,146.72,146.68,6.8141]
[1749183746955,41.8124,146.72,146.68,6.8141]
[1749183747144,35.0,146.72,146.67,4.86118586]
[1749183748449,35.0,146.72,146.69,6.8135]
[1749183749757,41.8124,146.72,146.69,6.8135]
[1749183749955,35.0,146.72,146.67,4.86118586]
[1749183750351,6.8129,146.71,146.67,4.86118586]
[1749183750552,0.04600369,146.7,146.67,4.86118586]
[1749183750745,0.04600369,146.7,146.67,6.8143]
[1749183752551,0.04600369,146.7,146.68,6.8142]
[1749183754653,0.04600369,146.7,146.69,6.8138]
[1749183754958,0.04600369,146.7,146.69,11.67498586]
[1749183755156,50.0,146.75,146.71,4.86118586]
[1749183755354,50.0,146.75,146.73,6.8118]
[1749183755859,50.0,146.75,146.71,6.8127]
[1749183756065,0.04502059,146.74,146.72,0.04430776]
[1749183756360,6.85672059,146.74,146.72,0.04430776]
[1749183759457,0.04502059,146.74,146.72,0.04430776]
[1749183760062,7.08550645,146.74,146.66,4.86118586]
[1749183760263,7.04048586,146.74,146.66,4.86118586]
[1749183760564,6.8125,146.72,146.68,6.8138]
[1749183760763,35.02,146.72,146.66,4.86118586]
[1749183760965,35.02,146.72,146.69,6.8137]
[1749183761160,35.06961352,146.72,146.69,6.8137]
[1749183762960,41.88201352,146.72,146.68,6.8141]
[1749183763769,6.8129,146.71,146.68,6.8141]
[1749183763965,6.8129,146.71,146.67,6.8145]
[1749183764362,6.8135,146.7,146.64,7.60842409]
[1749183764570,0.05006529,146.68,146.64,7.60842409]
[1749183765458,0.05006529,146.68,146.66,6.8148]
[1749183767671,0.05006529,146.68,146.67,6.8147]
[1749183769267,0.05006529,146.68,146.67,11.67588586]
[1749183774084,0.05006529,146.68,146.67,6.8147]
[1749183774282,0.05006529,146.68,146.64,2.74723823]
[1749183774985,0.05006529,146.68,146.66,6.8147]
[1749183775385,0.05006529,146.68,146.64,2.74723823]
[1749183775689,0.05006529,146.68,146.67,6.8147]
[1749183778284,39.88118586,146.72,146.71,6.8125]
[1749183778285,35.0,146.72,146.71,6.8125]
[1749183778485,35.0,146.72,146.65,4.5292]
[1749183778685,35.0,146.72,146.65,9.39038586]
[1749183778881,35.0,146.72,146.69,4.86118586]
[1749183779389,35.04952539,146.72,146.69,4.90538144]
[1749183780084,35.04952539,146.72,146.7,6.813]
[1749183781390,41.86192539,146.72,146.69,6.85779558]
[1749183781584,35.04952539,146.72,146.69,0.04419558]
[1749183782789,41.86192539,146.72,146.69,6.85769558]
[1749183783090,35.04952539,146.72,146.69,0.04419558]
[1749183784091,35.04952539,146.72,146.69,6.85759558]
[1749183784992,35.04952539,146.72,146.7,6.8133]
[1749183786087,41.86202539,146.72,146.69,6.85779558]
[1749183786295,41.86202539,146.72,146.69,0.04419558]
[1749183787696,41.86202539,146.72,146.69,6.85759558]
[1749183788398,35.04952539,146.72,146.69,6.85759558]
[1749183788894,35.04952539,146.72,146.7,6.8132]
[1749183789398,35.04952539,146.72,146.69,0.04419558]
[1749183789599,35.04952539,146.72,146.71,6.8128]
[1749183791098,35.04952539,146.72,146.7,6.8131]
[1749183793294,6.8153,146.66,146.64,2.74723823]
[1749183793494,300.0,146.71,146.55,12.61535079]
[1749183793495,40.68744832,146.65,146.55,12.61535079]
[1749183793793,35.0,146.64,146.59,4.87811287]
[1749183794000,35.0,146.64,146.59,4.88119305]
[1749183794295,0.05155621,146.63,146.6,0.02262561]
[1749183794490,0.05155621,146.63,146.62,11.69785526]
[1749183794697,0.05155621,146.63,146.62,6.817]
[1749183794997,0.05155621,146.63,146.61,4.88085526]
[1749183795198,0.05155621,146.63,146.61,11.69795526]
[1749183795395,0.05155621,146.63,146.61,4.88085526]
[1749183795989,0.05155621,146.63,146.62,6.817]
[1749183798701,5.621e-05,146.63,146.62,6.817]
[1749183798897,35.0,146.68,146.67,6.8147]
[1749183799400,34.98,146.69,146.67,6.8147]
[1749183799597,34.98,146.69,146.65,6.8152]
[1749183799790,34.98,146.69,146.66,0.04326297]
[1749183799791,4.89024958,146.68,146.66,0.04326297]
[1749183800101,0.04672612,146.68,146.66,0.04326297]
[1749183800702,34.98,146.67,146.66,0.04326297]
[1749183801500,39.8456229,146.67,146.66,0.04326297]
[1749183802100,34.98,146.67,146.66,0.04326297]
[1749183802300,4.87064238,146.67,146.66,0.04326297]
[1749183802496,39.85064238,146.67,146.66,0.04326297]
[1749183802696,39.85064239,146.67,146.66,0.04326297]
[1749183803200,34.98,146.67,146.66,0.04326297]
[1749183808704,34.98,146.67,146.66,6.85836297]
[1749183810006,34.98,146.67,146.66,0.04326297]
[1749183811401,44.72556907,146.67,146.6,4.88085526]
[1749183811601,46.67585526,146.67,146.63,6.8163]
[1749183812305,0.05165158,146.66,146.64,0.03091885]
[1749183812802,6.86685158,146.66,146.62,6.8169]
[1749183813002,11.3558,146.66,146.62,6.8169]
[1749183813197,4.88085526,146.65,146.62,6.8169]
[1749183813602,4.5406,146.66,146.63,6.8165]
[1749183813906,4.58937329,146.66,146.63,6.8165]
[1749183814409,35.0,146.65,146.63,6.8165]
[1749183815006,35.0,146.65,146.61,4.88085526]
[1749183815007,35.0,146.65,146.64,6.8161]
[1749183815206,2.30517329,146.66,146.61,4.88085526]
[1749183815403,2.30517329,146.66,146.65,6.8156]
[1749183816003,2.30517329,146.66,146.64,6.8159]
[1749183816403,37.30517329,146.66,146.64,6.8159]
[1749183816610,35.04877329,146.66,146.65,6.8156]
[1749183828213,35.04877329,146.66,146.65,11.69645526]
[1749183834221,34.98,146.71,146.7,6.8133]
[1749183834415,45.56040675,146.71,146.7,6.8133]
[1749183834617,40.69473786,146.71,146.7,6.8133]
[1749183834817,45.56040626,146.71,146.7,11.69415526]
[1749183835016,34.98,146.71,146.7,11.69415526]
[1749183836019,39.85558096,146.71,146.7,11.69415526]
[1749183836417,39.85533019,146.71,146.7,11.69415526]
[1749183836613,39.8553302,146.71,146.7,6.8133]
[1749183836823,34.98,146.71,146.7,6.8133]
[1749183837013,39.87173115,146.71,146.7,6.8133]
[1749183837220,39.87173265,146.71,146.7,6.8133]
[1749183837518,34.98,146.71,146.7,6.8133]
[1749183837716,39.87173265,146.71,146.7,6.8133]
[1749183837922,39.87173292,146.71,146.7,6.8133]
[1749183838120,39.87173005,146.71,146.7,6.8133]
[1749183838419,39.87361706,146.71,146.7,6.8133]
[1749183838615,34.98,146.71,146.7,6.8133]
[1749183839022,39.87442501,146.71,146.7,6.8133]
[1749183839222,4.89442501,146.71,146.7,6.8133]
[1749183840018,0.05161547,146.72,146.71,6.8128]
[1749183840226,1.547e-05,146.72,146.71,11.69365526]
[1749183842727,1.547e-05,146.72,146.71,6.8128]
[1749183842923,1.547e-05,146.72,146.71,11.69365526]
[1749183846730,1.547e-05,146.72,146.71,6.8128]
[1749183846931,1.547e-05,146.72,146.71,11.69365526]
[1749183847328,1.547e-05,146.72,146.71,6.8128]
[1749183853636,50.0,146.75,146.74,6.8114]
[1749183853833,50.0,146.75,146.74,11.69225526]
[1749183856435,50.0,146.75,146.74,6.8114]
[1749183857942,50.0,146.75,146.73,6.85637814]
[1749183858342,50.0,146.75,146.73,0.04457814]
[1749183858534,50.0,146.75,146.73,6.85627814]
[1749183860141,50.0,146.75,146.73,0.04457814]
[1749183860337,84.94,146.75,146.73,0.04457814]
[1749183862446,91.751,146.75,146.73,0.04457814]
[1749183862645,93.9153,146.75,146.73,0.04457814]
[1749183862844,87.1043,146.75,146.73,0.04457814]
[1749183864050,87.1043,146.75,146.73,6.85647814]
[1749183864746,87.1043,146.75,146.73,0.04457814]
[1749183866137,87.1043,146.75,146.73,6.85637814]
[1749183867548,93.9153,146.75,146.73,0.04457814]
[1749183868750,93.9153,146.75,146.73,6.85647814]
[1749183869055,84.94,146.75,146.73,0.04457814]
[1749183869953,84.94,146.75,146.74,6.8114]
[1749183870145,84.94,146.75,146.73,0.04457814]
[1749183870750,84.94,146.75,146.73,6.85617814]
[1749183871551,84.94,146.75,146.74,6.8114]
[1749183871747,84.94,146.75,146.73,0.04457814]
[1749183871953,84.94,146.75,146.73,6.85617814]
[1749183873064,84.94,146.75,146.73,0.04457814]
[1749183873550,6.8114,146.74,146.7,6.8129]
[1749183873753,4.88085526,146.74,146.7,6.8129]
[1749183873946,4.92110758,146.73,146.7,6.8129]
[1749183874151,6.812,146.73,146.69,8.61]
[1749183874449,9.0836,146.73,146.69,8.61]
[1749183874653,4.96457184,146.72,146.7,0.04296658]
[1749183874853,0.04351813,146.72,146.7,0.04296658]
[1749183875252,0.04351813,146.72,146.7,6.85596658]
[1749183876049,34.94,146.71,146.7,0.04296658]
[1749183876253,34.94,146.71,146.69,8.61]
[1749183877854,34.94,146.71,146.69,15.4234]
[1749183878049,34.94,146.71,146.69,8.61]
[1749183878453,0.04351813,146.72,146.71,6.8128]
[1749183886760,4.96173555,146.72,146.71,6.8128]
[1749183887261,4.96173861,146.72,146.71,6.8128]
[1749183887462,0.04351813,146.72,146.71,6.8128]
[1749183887662,4.96114039,146.72,146.71,6.8128]
[1749183887864,0.04351813,146.72,146.71,6.8128]
[1749183888162,4.96113936,146.72,146.71,6.8128]
[1749183888757,4.96113936,146.72,146.7,6.813]
[1749183889056,0.04351813,146.72,146.7,6.813]
[1749183890864,0.04351813,146.72,146.71,6.8128]
[1749183891561,4.96062036,146.72,146.71,6.8128]
[1749183891864,0.04351813,146.72,146.71,6.8128]